[Event "*** Titled Tuesday Blitz"]
[Site "Chess.com"]
[Date "2020.12.29"]
[Round "10"]
[White "karinachess1"]
[Black "Spriteball"]
[Result "0-1"]
[WhiteElo "2460"]
[BlackElo "2336"]
[TimeControl "180+1"]
[EndTime "11:54:03 PST"]
[Termination "Spriteball won by resignation"]

1. Nf3 {[%clk 0:02:57.5]} 1... Nf6 {[%clk 0:02:58.4]} 2. c4 {[%clk 0:02:57.8]}
2... e6 {[%clk 0:02:58]} 3. d4 {[%clk 0:02:57.5]} 3... d5 {[%clk 0:02:57.8]} 4.
Nc3 {[%clk 0:02:57.8]} 4... c6 {[%clk 0:02:57.5]} 5. Bg5 {[%clk 0:02:56.3]} 5...
Nbd7 {[%clk 0:02:57.3]} 6. e3 {[%clk 0:02:56.3]} 6... h6 {[%clk 0:02:56.9]} 7.
Bh4 {[%clk 0:02:56.6]} 7... Qa5 {[%clk 0:02:51.5]} 8. Qc2 {[%clk 0:02:54]} 8...
Bb4 {[%clk 0:02:51]} 9. Nd2 {[%clk 0:02:50.7]} 9... dxc4 {[%clk 0:02:37.7]} 10.
Nxc4 {[%clk 0:02:48.6]} 10... Qh5 {[%clk 0:02:25.4]} 11. Bg3 {[%clk 0:02:43.8]}
11... O-O {[%clk 0:02:24.7]} 12. Be2 {[%clk 0:02:43.1]} 12... Qf5 {[%clk
0:02:18.4]} 13. Bd3 {[%clk 0:02:25.9]} 13... Qh5 {[%clk 0:02:14.4]} 14. O-O
{[%clk 0:02:12.8]} 14... b6 {[%clk 0:01:58.3]} 15. e4 {[%clk 0:02:00.6]} 15...
Ba6 {[%clk 0:01:46.2]} 16. e5 {[%clk 0:01:57.9]} 16... Nd5 {[%clk 0:01:37]} 17.
Ne4 {[%clk 0:01:42.8]} 17... Be7 {[%clk 0:01:28.5]} 18. a3 {[%clk 0:01:42.4]}
18... c5 {[%clk 0:01:18.4]} 19. dxc5 {[%clk 0:01:31.5]} 19... Nxc5 {[%clk
0:01:18.4]} 20. Nxc5 {[%clk 0:01:30.8]} 20... Bxc5 {[%clk 0:01:18]} 21. Rae1
{[%clk 0:01:19.2]} 21... Rac8 {[%clk 0:01:14.2]} 22. Qa4 {[%clk 0:01:02.1]}
22... Bxc4 {[%clk 0:01:02.8]} 23. Bxc4 {[%clk 0:01:03]} 23... a5 {[%clk
0:00:52.1]} 24. Be2 {[%clk 0:00:56.5]} 24... Qg5 {[%clk 0:00:50.3]} 25. h4
{[%clk 0:00:53]} 25... Qxg3 {[%clk 0:00:49.4]} 26. Qe4 {[%clk 0:00:39.4]} 26...
Nf4 {[%clk 0:00:43.1]} 27. Kh1 {[%clk 0:00:19.6]} 27... Qxh4+ {[%clk 0:00:41.9]}
28. Kg1 {[%clk 0:00:17.8]} 28... Nh3+ {[%clk 0:00:41.8]} 0-1

[Event "*** Titled Tuesday Blitz"]
[Site "Chess.com"]
[Date "2020.12.29"]
[Round "10"]
[White "DinaBelenkaya"]
[Black "AlanZhang"]
[Result "1-0"]
[WhiteElo "2370"]
[BlackElo "2141"]
[TimeControl "180+1"]
[EndTime "11:54:03 PST"]
[Termination "DinaBelenkaya won on time"]

1. e4 {[%clk 0:03:00.9]} 1... e5 {[%clk 0:02:59.3]} 2. Nf3 {[%clk 0:02:59.5]}
2... Nc6 {[%clk 0:02:59.9]} 3. d4 {[%clk 0:03:00.2]} 3... exd4 {[%clk
0:02:59.7]} 4. Nxd4 {[%clk 0:03:01.1]} 4... Bc5 {[%clk 0:03:00]} 5. Nf5 {[%clk
0:02:56.5]} 5... Qf6 {[%clk 0:02:52.4]} 6. Nc3 {[%clk 0:02:47]} 6... Nge7 {[%clk
0:02:03.6]} 7. Nd5 {[%clk 0:02:39.9]} 7... Nxd5 {[%clk 0:02:00.6]} 8. Qxd5
{[%clk 0:02:40.8]} 8... Bb6 {[%clk 0:01:49.9]} 9. c3 {[%clk 0:02:23.3]} 9... d6
{[%clk 0:01:28]} 10. Be2 {[%clk 0:01:41.1]} 10... Be6 {[%clk 0:01:12.2]} 11. Qd3
{[%clk 0:01:39.6]} 11... O-O-O {[%clk 0:01:04.5]} 12. Be3 {[%clk 0:01:31.2]}
12... d5 {[%clk 0:00:48.9]} 13. Bxb6 {[%clk 0:01:01.9]} 13... dxe4 {[%clk
0:00:19.5]} 14. Qb5 {[%clk 0:01:01.3]} 14... axb6 {[%clk 0:00:18]} 15. Ne3
{[%clk 0:01:00.7]} 15... Qe5 {[%clk 0:00:17.1]} 16. Qa4 {[%clk 0:01:00.3]} 16...
Kb8 {[%clk 0:00:16.2]} 17. O-O {[%clk 0:00:58.1]} 17... f5 {[%clk 0:00:16.2]}
18. Nc4 {[%clk 0:00:56]} 18... Qc5 {[%clk 0:00:13.4]} 19. b4 {[%clk 0:00:55.4]}
19... b5 {[%clk 0:00:11.5]} 20. bxc5 {[%clk 0:00:54.8]} 20... bxa4 {[%clk
0:00:11.8]} 21. Rab1 {[%clk 0:00:54.5]} 21... Ka7 {[%clk 0:00:09.2]} 22. Rb5
{[%clk 0:00:51.3]} 22... f4 {[%clk 0:00:09.3]} 23. Rfb1 {[%clk 0:00:47.9]} 23...
Rb8 {[%clk 0:00:09.7]} 24. Na5 {[%clk 0:00:47.1]} 24... Ne7 {[%clk 0:00:01.3]}
25. Nc6+ {[%clk 0:00:45.6]} 1-0

[Event "*** Titled Tuesday Blitz"]
[Site "Chess.com"]
[Date "2020.12.29"]
[Round "10"]
[White "chessdjw"]
[Black "eightbyeightchess"]
[Result "1-0"]
[WhiteElo "2596"]
[BlackElo "2374"]
[TimeControl "180+1"]
[EndTime "11:54:04 PST"]
[Termination "chessdjw won by resignation"]

1. d4 {[%clk 0:03:00.9]} 1... d5 {[%clk 0:02:58.6]} 2. Nf3 {[%clk 0:02:59.5]}
2... Nf6 {[%clk 0:02:58.6]} 3. Bf4 {[%clk 0:02:59.3]} 3... Bf5 {[%clk
0:02:58.2]} 4. e3 {[%clk 0:02:57.6]} 4... e6 {[%clk 0:02:57.5]} 5. c4 {[%clk
0:02:54.1]} 5... Bd6 {[%clk 0:02:51.9]} 6. Bxd6 {[%clk 0:02:48.8]} 6... Qxd6
{[%clk 0:02:52.8]} 7. c5 {[%clk 0:02:41.9]} 7... Qd7 {[%clk 0:02:52.2]} 8. Ne5
{[%clk 0:02:37.7]} 8... Qe7 {[%clk 0:02:52.6]} 9. Nd2 {[%clk 0:02:33.5]} 9...
O-O {[%clk 0:02:52.4]} 10. g4 {[%clk 0:02:21.7]} 10... Bg6 {[%clk 0:02:50]} 11.
h4 {[%clk 0:02:22.1]} 11... h5 {[%clk 0:02:44.1]} 12. g5 {[%clk 0:02:21.1]}
12... Nfd7 {[%clk 0:02:43.8]} 13. Nxg6 {[%clk 0:02:17.8]} 13... fxg6 {[%clk
0:02:44.7]} 14. f4 {[%clk 0:02:17.7]} 14... e5 {[%clk 0:02:39.4]} 15. fxe5
{[%clk 0:02:14.2]} 15... Nxe5 {[%clk 0:02:39.6]} 16. dxe5 {[%clk 0:02:08.6]}
16... Qxe5 {[%clk 0:02:40.5]} 17. Qb3 {[%clk 0:02:02.1]} 17... Nc6 {[%clk
0:02:36.4]} 18. O-O-O {[%clk 0:01:51]} 18... Rf2 {[%clk 0:02:22]} 19. Bd3 {[%clk
0:01:35.9]} 19... Qxe3 {[%clk 0:02:17.9]} 20. Bxg6 {[%clk 0:01:10.2]} 20...
Qxc5+ {[%clk 0:02:17.5]} 21. Kb1 {[%clk 0:01:08]} 21... Nd4 {[%clk 0:02:09.4]}
22. Qd3 {[%clk 0:01:05.5]} 22... Raf8 {[%clk 0:01:55.8]} 23. Rc1 {[%clk
0:01:01.1]} 23... Qb4 {[%clk 0:01:54.9]} 24. Nb3 {[%clk 0:00:58]} 24... c5
{[%clk 0:01:03.2]} 25. Rxc5 {[%clk 0:00:55.5]} 25... Nxb3 {[%clk 0:01:01]} 26.
Qxd5+ {[%clk 0:00:53.7]} 26... Kh8 {[%clk 0:01:01.2]} 27. axb3 {[%clk
0:00:52.6]} 27... Rd2 {[%clk 0:00:51.5]} 28. Qc4 {[%clk 0:00:38.5]} 28... Qb6
{[%clk 0:00:39.7]} 29. Bc2 {[%clk 0:00:33]} 29... Qd8 {[%clk 0:00:30]} 30. Qe4
{[%clk 0:00:31.3]} 1-0

[Event "*** Titled Tuesday Blitz"]
[Site "Chess.com"]
[Date "2020.12.29"]
[Round "10"]
[White "Nafania1"]
[Black "Geller_Jakov"]
[Result "0-1"]
[WhiteElo "2423"]
[BlackElo "2618"]
[TimeControl "180+1"]
[EndTime "11:54:05 PST"]
[Termination "Geller_Jakov won by resignation"]

1. e4 {[%clk 0:03:00.9]} 1... c5 {[%clk 0:03:00.1]} 2. Nf3 {[%clk 0:03:01.2]}
2... e6 {[%clk 0:03:00.6]} 3. g3 {[%clk 0:03:01]} 3... a6 {[%clk 0:02:59.7]} 4.
Bg2 {[%clk 0:03:00.6]} 4... b5 {[%clk 0:03:00.4]} 5. O-O {[%clk 0:03:00.7]} 5...
Bb7 {[%clk 0:03:01]} 6. d4 {[%clk 0:03:01]} 6... cxd4 {[%clk 0:03:00.1]} 7. Nxd4
{[%clk 0:03:00.9]} 7... Nc6 {[%clk 0:03:00.4]} 8. a4 {[%clk 0:02:56.2]} 8... b4
{[%clk 0:02:59.2]} 9. c3 {[%clk 0:02:56.4]} 9... h5 {[%clk 0:02:44.5]} 10. h3
{[%clk 0:02:39.8]} 10... h4 {[%clk 0:02:33]} 11. g4 {[%clk 0:02:40.1]} 11...
Nge7 {[%clk 0:02:28.6]} 12. Be3 {[%clk 0:02:32]} 12... Ng6 {[%clk 0:02:26.3]}
13. f4 {[%clk 0:02:31.9]} 13... Bc5 {[%clk 0:02:19.4]} 14. e5 {[%clk 0:02:20.4]}
14... bxc3 {[%clk 0:02:09.8]} 15. bxc3 {[%clk 0:02:20.3]} 15... Rb8 {[%clk
0:02:00]} 16. Nd2 {[%clk 0:02:20]} 16... O-O {[%clk 0:01:45.3]} 17. Ne4 {[%clk
0:02:19.6]} 17... Ba7 {[%clk 0:01:42.8]} 18. Qe1 {[%clk 0:01:57.7]} 18... Nxd4
{[%clk 0:01:40.1]} 19. cxd4 {[%clk 0:01:54.5]} 19... Bxe4 {[%clk 0:01:35.3]} 20.
Bxe4 {[%clk 0:01:54.1]} 20... d5 {[%clk 0:01:35.9]} 21. Bd3 {[%clk 0:01:46.7]}
21... Rb3 {[%clk 0:01:29.2]} 22. Qe2 {[%clk 0:01:36.4]} 22... Qb6 {[%clk
0:01:18.9]} 23. Rab1 {[%clk 0:01:15.1]} 23... Nxf4 {[%clk 0:01:15.9]} 24. Rxf4
{[%clk 0:00:52.3]} 24... Rxb1+ {[%clk 0:01:15.2]} 25. Rf1 {[%clk 0:00:44.9]}
25... Rxf1+ {[%clk 0:01:10.6]} 26. Qxf1 {[%clk 0:00:45.1]} 26... Rc8 {[%clk
0:01:09.1]} 27. g5 {[%clk 0:00:37.1]} 27... g6 {[%clk 0:00:50.5]} 28. Qf6 {[%clk
0:00:28.9]} 28... Qb3 {[%clk 0:00:48.9]} 29. Bxg6 {[%clk 0:00:25.3]} 29... Qxe3+
{[%clk 0:00:48.7]} 30. Kg2 {[%clk 0:00:22.5]} 30... Qe2+ {[%clk 0:00:45.1]} 0-1

[Event "*** Titled Tuesday Blitz"]
[Site "Chess.com"]
[Date "2020.12.29"]
[Round "10"]
[White "swimmerchess"]
[Black "Storne89"]
[Result "1-0"]
[WhiteElo "2799"]
[BlackElo "2626"]
[TimeControl "180+1"]
[EndTime "11:54:09 PST"]
[Termination "swimmerchess won by resignation"]

1. e4 {[%clk 0:03:00.9]} 1... e5 {[%clk 0:02:58.4]} 2. Nf3 {[%clk 0:03:00.9]}
2... Nc6 {[%clk 0:02:59]} 3. Bb5 {[%clk 0:03:01.5]} 3... a6 {[%clk 0:02:55]} 4.
Ba4 {[%clk 0:03:01.7]} 4... Nf6 {[%clk 0:02:55.1]} 5. O-O {[%clk 0:03:02.2]}
5... Be7 {[%clk 0:02:55.4]} 6. Re1 {[%clk 0:03:02.3]} 6... b5 {[%clk 0:02:55.7]}
7. Bb3 {[%clk 0:03:02.9]} 7... O-O {[%clk 0:02:56.1]} 8. a3 {[%clk 0:03:01.5]}
8... d6 {[%clk 0:02:52]} 9. c3 {[%clk 0:03:01.6]} 9... Na5 {[%clk 0:02:35.8]}
10. Ba2 {[%clk 0:02:58.9]} 10... c5 {[%clk 0:02:36.3]} 11. d4 {[%clk 0:02:57.8]}
11... Nd7 {[%clk 0:02:35.7]} 12. dxc5 {[%clk 0:02:53.8]} 12... dxc5 {[%clk
0:02:34.5]} 13. Bd5 {[%clk 0:02:42.2]} 13... Rb8 {[%clk 0:02:28.8]} 14. b4
{[%clk 0:02:40.5]} 14... Nc4 {[%clk 0:02:05.6]} 15. Bxc4 {[%clk 0:02:33.4]}
15... bxc4 {[%clk 0:02:05.4]} 16. Nbd2 {[%clk 0:02:34.3]} 16... cxb4 {[%clk
0:02:05.4]} 17. axb4 {[%clk 0:02:34]} 17... Qc7 {[%clk 0:02:06.3]} 18. Qe2
{[%clk 0:02:31.3]} 18... Nb6 {[%clk 0:02:04.9]} 19. Ra5 {[%clk 0:02:31.5]} 19...
f6 {[%clk 0:02:03.4]} 20. Bb2 {[%clk 0:02:27.6]} 20... Bb7 {[%clk 0:02:00]} 21.
Rea1 {[%clk 0:02:23.4]} 21... Rfd8 {[%clk 0:01:58.1]} 22. Ne1 {[%clk 0:02:16.8]}
22... Rd7 {[%clk 0:01:56.8]} 23. Nc2 {[%clk 0:02:12]} 23... Rbd8 {[%clk
0:01:56.4]} 24. Bc1 {[%clk 0:02:07.3]} 24... Rd3 {[%clk 0:01:56]} 25. R5a3
{[%clk 0:02:04.2]} 25... Qd7 {[%clk 0:01:45.6]} 26. Nf1 {[%clk 0:02:02.7]} 26...
Rd1 {[%clk 0:01:26.4]} 27. Be3 {[%clk 0:02:01.5]} 27... Rxa1 {[%clk 0:01:22]}
28. Rxa1 {[%clk 0:02:02.4]} 28... Qc6 {[%clk 0:01:10.4]} 29. Bxb6 {[%clk
0:02:00]} 29... Qxb6 {[%clk 0:01:11.3]} 30. Qxc4+ {[%clk 0:02:00.7]} 30... Kh8
{[%clk 0:01:11.8]} 31. Nfe3 {[%clk 0:01:56.3]} 31... Rc8 {[%clk 0:01:10.8]} 32.
Qf7 {[%clk 0:01:55]} 32... Bf8 {[%clk 0:01:10.1]} 33. Nd5 {[%clk 0:01:39.2]}
33... Bxd5 {[%clk 0:00:57.4]} 34. exd5 {[%clk 0:01:40.1]} 34... Qd6 {[%clk
0:00:57]} 35. Ne3 {[%clk 0:01:35.5]} 35... g6 {[%clk 0:00:35.8]} 36. c4 {[%clk
0:01:33.1]} 36... Bg7 {[%clk 0:00:34.2]} 37. c5 {[%clk 0:01:33]} 37... Qb8
{[%clk 0:00:34.8]} 38. d6 {[%clk 0:01:16.3]} 38... f5 {[%clk 0:00:29.7]} 39. d7
{[%clk 0:01:12.9]} 39... Rf8 {[%clk 0:00:29.8]} 40. Qe7 {[%clk 0:01:09.1]} 40...
e4 {[%clk 0:00:25.6]} 41. Rd1 {[%clk 0:01:08.6]} 41... Bf6 {[%clk 0:00:21.5]}
42. Qxf6+ {[%clk 0:01:08.4]} 1-0

[Event "*** Titled Tuesday Blitz"]
[Site "Chess.com"]
[Date "2020.12.29"]
[Round "10"]
[White "Parhamov"]
[Black "TregubovP"]
[Result "1-0"]
[WhiteElo "2927"]
[BlackElo "2615"]
[TimeControl "180+1"]
[EndTime "11:54:10 PST"]
[Termination "Parhamov won on time"]

1. d4 {[%clk 0:03:00.9]} 1... Nf6 {[%clk 0:02:59.7]} 2. Bg5 {[%clk 0:03:00.7]}
2... Ne4 {[%clk 0:02:54.9]} 3. h4 {[%clk 0:03:00.3]} 3... Nxg5 {[%clk
0:02:46.7]} 4. hxg5 {[%clk 0:02:59]} 4... c5 {[%clk 0:02:44.8]} 5. d5 {[%clk
0:02:52.7]} 5... e5 {[%clk 0:02:39]} 6. dxe6 {[%clk 0:02:40.4]} 6... dxe6 {[%clk
0:02:35.7]} 7. Qxd8+ {[%clk 0:02:40.2]} 7... Kxd8 {[%clk 0:02:36.2]} 8. f4
{[%clk 0:02:40.4]} 8... Nc6 {[%clk 0:02:35.4]} 9. Nf3 {[%clk 0:02:38]} 9... Bd6
{[%clk 0:02:33.9]} 10. e3 {[%clk 0:02:36.2]} 10... e5 {[%clk 0:02:33.9]} 11. g3
{[%clk 0:02:36.6]} 11... Nb4 {[%clk 0:02:17.2]} 12. Na3 {[%clk 0:02:36.6]} 12...
Bf5 {[%clk 0:02:14.1]} 13. Rd1 {[%clk 0:02:26.1]} 13... Ke7 {[%clk 0:02:11.9]}
14. c3 {[%clk 0:02:26.4]} 14... Nc2+ {[%clk 0:02:00.1]} 15. Nxc2 {[%clk
0:02:25.9]} 15... Bxc2 {[%clk 0:02:00.7]} 16. Rd2 {[%clk 0:02:26.5]} 16... Bb1
{[%clk 0:01:49.8]} 17. Bc4 {[%clk 0:02:24.4]} 17... Be4 {[%clk 0:01:30]} 18. Kf2
{[%clk 0:02:20.9]} 18... Rad8 {[%clk 0:01:25.4]} 19. Rhd1 {[%clk 0:02:16.4]}
19... f6 {[%clk 0:01:09.3]} 20. Bd5 {[%clk 0:02:11.6]} 20... Bxf3 {[%clk
0:01:05.1]} 21. gxf6+ {[%clk 0:02:09.9]} 21... gxf6 {[%clk 0:01:03.9]} 22. Bxf3
{[%clk 0:02:07.7]} 22... b6 {[%clk 0:01:02.9]} 23. Rh1 {[%clk 0:02:07.6]} 23...
h6 {[%clk 0:01:01.3]} 24. Rh5 {[%clk 0:02:06.8]} 24... Bc7 {[%clk 0:00:58.9]}
25. Bd5 {[%clk 0:02:07.1]} 25... b5 {[%clk 0:00:48.3]} 26. Kf3 {[%clk
0:02:07.2]} 26... c4 {[%clk 0:00:47.5]} 27. e4 {[%clk 0:02:07.4]} 27... a5
{[%clk 0:00:39.5]} 28. Rdh2 {[%clk 0:02:05.4]} 28... b4 {[%clk 0:00:15.3]} 29.
Rxh6 {[%clk 0:02:04.2]} 29... Rxh6 {[%clk 0:00:15]} 30. Rxh6 {[%clk 0:02:05.1]}
30... bxc3 {[%clk 0:00:15.3]} 31. bxc3 {[%clk 0:02:05]} 31... exf4 {[%clk
0:00:14.3]} 32. gxf4 {[%clk 0:02:05]} 32... Rb8 {[%clk 0:00:12.2]} 33. Rh7+
{[%clk 0:01:59.7]} 33... Kd6 {[%clk 0:00:11.4]} 34. Rf7 {[%clk 0:01:59.9]} 34...
Bd8 {[%clk 0:00:07.5]} 35. Rf8 {[%clk 0:01:59.7]} 35... Ke7 {[%clk 0:00:06.3]}
36. Rh8 {[%clk 0:01:58.6]} 36... Rb1 {[%clk 0:00:05.3]} 37. e5 {[%clk
0:01:58.2]} 37... fxe5 {[%clk 0:00:04.2]} 38. fxe5 {[%clk 0:01:59.1]} 38... Rc1
{[%clk 0:00:03.8]} 39. Ke4 {[%clk 0:01:56]} 39... Rxc3 {[%clk 0:00:03.3]} 40.
Rh7+ {[%clk 0:01:56.5]} 40... Ke8 {[%clk 0:00:02.8]} 41. e6 {[%clk 0:01:49.3]}
41... Rc1 {[%clk 0:00:02.2]} 42. Bc6+ {[%clk 0:01:46.7]} 42... Kf8 {[%clk
0:00:02.5]} 43. Rf7+ {[%clk 0:01:42]} 43... Kg8 {[%clk 0:00:02.4]} 44. Rd7
{[%clk 0:01:40.9]} 44... Bf6 {[%clk 0:00:02]} 45. Rf7 {[%clk 0:01:38.3]} 1-0

[Event "*** Titled Tuesday Blitz"]
[Site "Chess.com"]
[Date "2020.12.29"]
[Round "10"]
[White "GigaQuparadze"]
[Black "Msb2"]
[Result "1-0"]
[WhiteElo "2895"]
[BlackElo "2797"]
[TimeControl "180+1"]
[EndTime "11:54:15 PST"]
[Termination "GigaQuparadze won by checkmate"]

1. e4 {[%clk 0:03:00.9]} 1... e6 {[%clk 0:03:00.2]} 2. d4 {[%clk 0:03:00.7]}
2... d5 {[%clk 0:03:00.8]} 3. Nd2 {[%clk 0:03:01.1]} 3... c5 {[%clk 0:03:00.3]}
4. Ngf3 {[%clk 0:03:00.7]} 4... cxd4 {[%clk 0:03:00.6]} 5. Nxd4 {[%clk
0:03:01.6]} 5... Nf6 {[%clk 0:03:01]} 6. exd5 {[%clk 0:03:01.9]} 6... Nxd5
{[%clk 0:03:01.9]} 7. N2f3 {[%clk 0:03:00.5]} 7... Bb4+ {[%clk 0:03:02.5]} 8.
Bd2 {[%clk 0:03:00.3]} 8... O-O {[%clk 0:03:02.8]} 9. Bd3 {[%clk 0:02:59.8]}
9... Nd7 {[%clk 0:02:48.4]} 10. O-O {[%clk 0:02:56.1]} 10... N7f6 {[%clk
0:02:47.9]} 11. c3 {[%clk 0:02:53.9]} 11... Be7 {[%clk 0:02:46.1]} 12. Qe2
{[%clk 0:02:51.6]} 12... a6 {[%clk 0:02:42.8]} 13. Ne5 {[%clk 0:02:51.4]} 13...
Qc7 {[%clk 0:02:41.9]} 14. a3 {[%clk 0:02:50]} 14... b5 {[%clk 0:02:32.1]} 15.
a4 {[%clk 0:02:47.6]} 15... bxa4 {[%clk 0:02:26.5]} 16. Rxa4 {[%clk 0:02:46.5]}
16... Bb7 {[%clk 0:02:24.3]} 17. Re1 {[%clk 0:02:37.9]} 17... Bd6 {[%clk
0:02:22]} 18. Ndf3 {[%clk 0:02:35.9]} 18... a5 {[%clk 0:02:05.7]} 19. Rh4 {[%clk
0:02:32.6]} 19... g6 {[%clk 0:01:20.5]} 20. Bg5 {[%clk 0:02:08.6]} 20... Nd7
{[%clk 0:00:52.1]} 21. Nxg6 {[%clk 0:01:50.7]} 21... hxg6 {[%clk 0:00:52]} 22.
Bxg6 {[%clk 0:01:50.4]} 22... N7f6 {[%clk 0:00:46]} 23. Bb1 {[%clk 0:01:47.2]}
23... Bf4 {[%clk 0:00:32.1]} 24. Qc2 {[%clk 0:01:00.4]} 24... Rfd8 {[%clk
0:00:30.2]} 25. Rxf4 {[%clk 0:00:57.3]} 25... Nxf4 {[%clk 0:00:30.7]} 26. Bxf6
{[%clk 0:00:57.6]} 26... Ng6 {[%clk 0:00:31.4]} 27. Ne5 {[%clk 0:00:54]} 27...
Nf8 {[%clk 0:00:08.3]} 28. Qc1 {[%clk 0:00:51.9]} 28... Rd5 {[%clk 0:00:05.5]}
29. Qh6 {[%clk 0:00:50.5]} 29... Ng6 {[%clk 0:00:06.1]} 30. Qg7# {[%clk
0:00:50.3]} 1-0

[Event "*** Titled Tuesday Blitz"]
[Site "Chess.com"]
[Date "2020.12.29"]
[Round "10"]
[White "skoularikii"]
[Black "Zhigalko_Sergei"]
[Result "0-1"]
[WhiteElo "2632"]
[BlackElo "2862"]
[TimeControl "180+1"]
[EndTime "11:54:19 PST"]
[Termination "Zhigalko_Sergei won by resignation"]

1. e4 {[%clk 0:03:00.9]} 1... c5 {[%clk 0:02:55.3]} 2. Nf3 {[%clk 0:03:00.8]}
2... Nc6 {[%clk 0:02:55.2]} 3. Bb5 {[%clk 0:03:00.6]} 3... Nf6 {[%clk
0:02:53.9]} 4. e5 {[%clk 0:02:58.3]} 4... Nd5 {[%clk 0:02:53.9]} 5. O-O {[%clk
0:02:54.8]} 5... Nc7 {[%clk 0:02:52]} 6. Bxc6 {[%clk 0:02:46.4]} 6... dxc6
{[%clk 0:02:51.8]} 7. h3 {[%clk 0:02:44.9]} 7... h6 {[%clk 0:02:51.2]} 8. Nc3
{[%clk 0:02:41.3]} 8... Bf5 {[%clk 0:02:51.2]} 9. d3 {[%clk 0:02:37.9]} 9... g5
{[%clk 0:02:46.1]} 10. Qe2 {[%clk 0:02:30.9]} 10... Ne6 {[%clk 0:02:46.1]} 11.
Be3 {[%clk 0:02:26.1]} 11... Bg7 {[%clk 0:02:44]} 12. Rad1 {[%clk 0:02:13.4]}
12... Qc7 {[%clk 0:02:34]} 13. d4 {[%clk 0:02:02.4]} 13... cxd4 {[%clk
0:02:34.1]} 14. Bxd4 {[%clk 0:01:55.2]} 14... O-O {[%clk 0:02:17.9]} 15. Rfe1
{[%clk 0:01:08.9]} 15... Rfd8 {[%clk 0:02:09.3]} 16. Na4 {[%clk 0:00:44.2]}
16... Nf4 {[%clk 0:01:49.9]} 17. Qd2 {[%clk 0:00:44.1]} 17... b6 {[%clk
0:01:26.7]} 18. b4 {[%clk 0:00:44.2]} 18... c5 {[%clk 0:01:23.5]} 19. bxc5
{[%clk 0:00:42.4]} 19... Qc6 {[%clk 0:01:24.2]} 20. Qb4 {[%clk 0:00:28.2]} 20...
Bxh3 {[%clk 0:01:12.8]} 21. Be3 {[%clk 0:00:13.2]} 21... Nxg2 {[%clk 0:00:54.4]}
22. cxb6 {[%clk 0:00:06.8]} 22... Qxf3 {[%clk 0:00:34.8]} 23. b7 {[%clk
0:00:06.7]} 23... Nxe1 {[%clk 0:00:29.1]} 24. bxa8=Q {[%clk 0:00:06.3]} 24...
Rxa8 {[%clk 0:00:30]} 0-1

[Event "*** Titled Tuesday Blitz"]
[Site "Chess.com"]
[Date "2020.12.29"]
[Round "10"]
[White "ExcitingTrap"]
[Black "sotochess"]
[Result "0-1"]
[WhiteElo "2373"]
[BlackElo "2528"]
[TimeControl "180+1"]
[EndTime "11:54:22 PST"]
[Termination "sotochess won by resignation"]

1. e4 {[%clk 0:03:00.9]} 1... d5 {[%clk 0:02:59.1]} 2. exd5 {[%clk 0:03:00.9]}
2... Qxd5 {[%clk 0:02:58.2]} 3. Nc3 {[%clk 0:03:01.1]} 3... Qa5 {[%clk
0:02:58.1]} 4. d4 {[%clk 0:03:01.3]} 4... c6 {[%clk 0:02:58]} 5. Bc4 {[%clk
0:02:58.4]} 5... Nf6 {[%clk 0:02:57.8]} 6. Bd2 {[%clk 0:02:58.5]} 6... Qb6
{[%clk 0:02:57.3]} 7. Nf3 {[%clk 0:02:56.1]} 7... Qxb2 {[%clk 0:02:55.8]} 8. Rb1
{[%clk 0:02:25.2]} 8... Qa3 {[%clk 0:02:45.7]} 9. O-O {[%clk 0:02:25.4]} 9... e6
{[%clk 0:02:44.5]} 10. Re1 {[%clk 0:02:19.8]} 10... Be7 {[%clk 0:02:42.1]} 11.
Qe2 {[%clk 0:02:09.3]} 11... O-O {[%clk 0:02:38.4]} 12. Qd3 {[%clk 0:02:09.5]}
12... Nbd7 {[%clk 0:02:31]} 13. Bf4 {[%clk 0:02:08.1]} 13... b5 {[%clk
0:02:21.6]} 14. Bb3 {[%clk 0:02:01.9]} 14... a5 {[%clk 0:02:10.5]} 15. d5 {[%clk
0:01:34.5]} 15... Nc5 {[%clk 0:01:58.5]} 16. Qd2 {[%clk 0:01:27.8]} 16... b4
{[%clk 0:01:52.5]} 17. Ne2 {[%clk 0:01:16.3]} 17... cxd5 {[%clk 0:01:48.9]} 18.
Ned4 {[%clk 0:01:13.1]} 18... Nce4 {[%clk 0:01:44.4]} 19. Rxe4 {[%clk
0:01:08.1]} 19... Nxe4 {[%clk 0:01:44]} 20. Qe3 {[%clk 0:01:02.9]} 20... Bc5
{[%clk 0:01:43.4]} 21. Qe1 {[%clk 0:00:57.2]} 21... a4 {[%clk 0:01:39.1]} 22.
Bc1 {[%clk 0:00:53]} 22... axb3 {[%clk 0:01:36.2]} 23. Bxa3 {[%clk 0:00:52.9]}
23... bxa2 {[%clk 0:01:35.9]} 24. Ra1 {[%clk 0:00:47.8]} 24... Rxa3 {[%clk
0:01:35.2]} 25. Qc1 {[%clk 0:00:39.8]} 25... Bd7 {[%clk 0:01:32.4]} 26. Qb2
{[%clk 0:00:37.5]} 26... Rfa8 {[%clk 0:01:31.5]} 27. Ne5 {[%clk 0:00:20.8]}
27... Be8 {[%clk 0:01:31.3]} 28. Nd3 {[%clk 0:00:18.8]} 28... Bf8 {[%clk
0:01:18.8]} 29. Nxb4 {[%clk 0:00:16.6]} 29... R3a4 {[%clk 0:01:13.9]} 30. Nd3
{[%clk 0:00:15.6]} 30... g6 {[%clk 0:00:58]} 31. c3 {[%clk 0:00:08.4]} 31... Bg7
{[%clk 0:00:55]} 32. Nc1 {[%clk 0:00:08.4]} 32... Nxc3 {[%clk 0:00:53.9]} 33.
Qxc3 {[%clk 0:00:06.4]} 33... Bxd4 {[%clk 0:00:53.6]} 34. Qc2 {[%clk 0:00:05.1]}
34... Bxa1 {[%clk 0:00:53.2]} 0-1